Cogmind - Beta 16 --- EXPLORER MODE // 2025.12.02 @ 14:02:38 Player: K.K.Y. Result: Destroyed self with Light Ion Engine chain reaction Performance ------------- Evolutions (0) 0 Regions Visited (3) 600 Robots Destroyed (34) 170 Value Destroyed (763) 763 Prototype IDs (13) 260 Alien Tech Used (0) 0 Bonus (0) 0 TOTAL SCORE: 1793 Bonus ------- None Cogmind --------- Core Integrity 0/250 Matter 285/300 Energy 130/180 System Corruption 0% Temperature Cool (12) Movement Treading (400) Ox3 Location -10/Subcaves Parts ------- > --- POWER (1) -------- Meta Core > --- PROPULSION (3+1) - Light Treads > --- UTILITY (2+1) ---- Huge Storage Unit Weight Redist. System Experimental Sensor Array (+) > --- WEAPON (2) ------- Heavy Riot Gun Makeshift Hammer > --- INVENTORY (25) --- Improved Ion Engine Light Nuclear Core Improved Terrain Scanner Core Shielding Scrap Shield Makeshift System Restoration Module Power Bank Datajack Peak State ------------ > --- POWER ------------ Meta Core > --- PROPULSION ------- Light Treads Light Treads Light Treads > --- UTILITY ---------- Small Storage Unit Weight Redist. System Experimental Sensor Array > --- WEAPON ----------- Barrage Gun Mining Laser Plasma Flamer > --- INVENTORY -------- Light Nuclear Core Huge Storage Unit Improved Terrain Scanner Core Shielding Makeshift System Restoration Module Heavy Riot Gun Datajack Makeshift Hammer [Rating: 39] Favorites ----------- Power Ion Engine Engine Ion Engine Power Core Meta Core Propulsion Light Treads Treads Light Treads Hover Unit Hover Unit Flight Unit Flight Unit Utility Weight Redist. System Device Weight Redist. System Storage Small Storage Unit Weapon EM Shotgun Energy Gun EM Shotgun Ballistic Gun Barrage Gun Special Weapon Plasma Flamer Impact Weapon Makeshift Hammer Build | -11 -10 -10 -10 ------- Run | Yrd Mat Min Sub Slots Evolved 1 | . 1 . . Power . | . . . . Propulsion 1 | . 1 . . Utility . | . . . . Weapon . | . . . . Parts Attached 33 | 2 18 4 9 Power 5 | . 2 2 1 Engine 3 | . 2 1 . Core 2 | . . 1 1 Reactor . | . . . . Propulsion 12 | . 10 1 1 Treads 4 | . 2 1 1 Leg . | . . . . Wheel . | . . . . Hover 4 | . 4 . . Flight 4 | . 4 . . Utility 5 | . 3 . 2 Device 2 | . 1 . 1 Storage 3 | . 2 . 1 Processor . | . . . . Hackware . | . . . . Protection . | . . . . Artifact . | . . . . Weapon 11 | 2 3 1 5 Energy Gun 6 | 2 2 1 1 Energy Cannon . | . . . . Ballistic Gun 2 | . 1 . 1 Ballistic Cannon . | . . . . Launcher . | . . . . Special Weapon 2 | . . . 2 Impact Weapon 1 | . . . 1 Slashing Weapon . | . . . . Piercing Weapon . | . . . . Special Melee Weapon . | . . . . Unidentified Prototypes 1 | . . . 1 Parts Lost 9 | . . 2 7 Power . | . . . . Propulsion 4 | . . 1 3 Utility . | . . . . Weapon 5 | . . 1 4 Highest Loss Streak 2 | . . 1 2 To Critical Strikes . | . . . . Average Backups 6 | 3 4 7 7 Power . | . . . . Propulsion . | 1 1 1 . Utility 3 | 1 2 3 4 Weapon 1 | . . 1 1 Tool/Special . | . . . . Unused Backups 10 | . 2 . 8 Power 1 | . . . 1 Propulsion . | . . . . Utility 7 | . 2 . 5 Weapon 1 | . . . 1 Tool/Special 1 | . . . 1 Average Slot Usage (%) 86 | . 73 93 89 Engine 4 | . 9 9 . Core 5 | . . 2 10 Treads 19 | . 7 13 29 Hover 1 | . 5 . . Flight 5 | . 5 18 . Device 13 | . 9 12 15 Storage 10 | . 9 12 10 Energy Gun 10 | . 16 24 2 Ballistic Gun 5 | . 7 . 5 Special Weapon 8 | . . . 16 Peak Build Rating 39 | 2 12 15 39 Average Rating 20 | . 8 12 30 On Entrance 7 | . 2 11 15 Avg Prop Armor Cover (%) . | . . . . Naked Turns . | . . . . Heaviest Build 94 | 3 21 16 94 Greatest Support 66 | 3 46 66 66 Greatest Overweight (x) 3 | . 1 1 3 Average Overweight (x) . | . . . . Largest Inventory Capacity 25 | 5 10 8 25 Average Capacity 13 | 5 7 8 18 Most Carried 11 | 5 8 8 11 Average Carried 7 | 3 4 7 8 Final Capacity 25 | 5 8 8 25 Final Carried 9 | 5 7 7 9 Class Distribution -------------------- 68% | Hacker-Mutant 26% | Hacker-Skirmisher 4% | Scavenger-Mutant Dominant Class ---------------- Hacker-Mutant | -10/Materials Hacker-Mutant | -10/Mines Hacker-Skirmisher | -10/Subcaves Resources | -11 -10 -10 -10 ----------- Run | Yrd Mat Min Sub Matter Collected 654 | 195 222 108 129 Remotely . | . . . . Salvage Created 1245 | . 425 560 260 Parts 72 | . 28 26 18 Haulers Intercepted 2 | . 2 . . Recyclers Shooed . | . . . . Parts Field Recycled . | . . . . Retrieved Matter . | . . . . Parts Self-Destructed . | . . . . Prevented . | . . . . Parts Restored . | . . . . Kills | -11 -10 -10 -10 ------- Run | Yrd Mat Min Sub Combat Hostiles Destroyed 21 | . 6 6 9 Guns 13 | . 6 2 5 Cannons 4 | . . . 4 AOE 2 | . . 2 . Classes Destroyed 10 | . 7 1 2 Worker 1 | . 1 . . Tunneler 3 | . 1 2 . Hauler 2 | . 2 . . Recycler 4 | . 1 3 . Watcher 3 | . 3 . . Swarmer 6 | . 4 . 2 Grunt 6 | . 2 4 . Sentry 3 | . . 2 1 Artisan 1 | . . . 1 Subdweller 6 | . . . 6 Best Kill Streak 3 | . 3 3 2 Combat Bots Only 2 | . 2 2 2 Max Kills in Single Turn 2 | . 1 2 1 Gunslinging . | . . . . Exploded 1 | . . 1 . Melee . | . . . . Uniques/NPCs Destroyed . | . . . . Combat | -11 -10 -10 -10 -------- Run | Yrd Mat Min Sub Hostile Shots Fired 156 | . 32 32 92 Missed 36 | . 7 6 23 Hits 120 | . 25 26 69 Projectile 120 | . 25 26 69 Critical Strikes 3 | . . 3 . Damage Taken 1209 | . 190 281 738 Core 253 | . 38 88 127 Absorbed by Shields . | . . . . Ignored by Resistances 745 | . 122 175 448 Core Remaining (%) 100 | 100 . . . Volleys Fired 104 | . 32 19 53 Largest 3 | . 2 2 3 Hottest 228 | . 90 101 228 Shots Fired 182 | . 58 38 86 Gun 135 | . 58 38 39 Cannon . | . . . . Launcher . | . . . . Special 47 | . . . 47 Kinetic 32 | . 15 . 17 Thermal 95 | . 30 4 61 Explosive . | . . . . Electromagnetic 55 | . 13 34 8 Robot Hit Streak 45 | . 19 19 45 Robot Miss Streak 3 | . 3 1 1 Penetration Max . | . . . . Secondary Targets 2 | . 1 1 . Max Gunslinging Chain 1 | . 1 1 . Shots Hit Robots 122 | . 39 36 47 Core Hits 65 | . 23 22 20 Critical Kills . | . . . . Critical Parts Destroyed . | . . . . Critical Strikes 8 | . 2 . 6 Burn 8 | . 2 . 6 Melee Attacks . | . . . . Impact . | . . . . Slashing . | . . . . Piercing . | . . . . Sneak Attacks . | . . . . Combat Hostiles . | . . . . Follow-up Attacks . | . . . . Damage Inflicted 2063 | . 655 666 742 Guns 1628 | . 595 557 476 Cannons . | . . . . Explosions 162 | . 60 102 . Melee . | . . . . Ramming 7 | . . 7 . Kinetic 371 | . 166 . 205 Thermal 883 | . 330 144 409 Explosive . | . . . . Electromagnetic 802 | . 159 515 128 Impact . | . . . . Slashing . | . . . . Piercing . | . . . . Highest Corruption . | . . . . Average Corruption . | . . . . Corruption Purged . | . . . . Corruption Blocked . | . . . . Overload Shots . | . . . . Overflow Damage 16 | . 13 3 . Projectiles . | . . . . Explosions 16 | . 13 3 . Melee . | . . . . Knockbacks . | . . . . Impact . | . . . . Kinetic . | . . . . Secondary . | . . . . Self-Inflicted Damage 73 | . 12 45 16 Shots 4 | . 1 2 1 Rammed 1 | . . 1 . Targets Rammed 1 | . . 1 . Kicked . | . . . . Crushed . | . . . . Highest Temperature 235 | . 84 235 58 Average Temperature 47 | . 25 96 14 Received Heat Transfer 561 | . 93 186 282 Effects 1 | . . 1 . Energy Bleed 1 | . . 1 . Siege Activations . | . . . . Martial Activations . | . . . . Shielding Activations . | . . . . Robots Disrupted 1 | . . . 1 Combat Hostiles 1 | . . . 1 Robots Corrupted 2 | . . 2 . Combat Hostiles 2 | . . 2 . Parts Fried 6 | . 1 3 2 Impact Corruptions . | . . . . Robots Melted . | . . . . Combat Hostiles . | . . . . Parts Melted 4 | . . . 4 Heat Transferred 3552 | . 979 261 2312 Parts Sabotaged . | . . . . Parts Stolen . | . . . . Parts Stripped . | . . . . Power Chain Reactions 5 | . 1 3 1 Alert | -11 -10 -10 -10 ------- Run | Yrd Mat Min Sub Maximum Alert Level . | . . . . Low Security (%) 100 | 100 100 100 . Level 1 . | . . . . Level 2 . | . . . . Level 3 . | . . . . Level 4 . | . . . . Level 5 . | . . . . High Security . | . . . . Max Security . | . . . . Peak Influence 80 | . 50 80 . Initial . | . . . . Average 11 | . 6 19 . Influence Increases 600 | . 223 272 105 Destroy 0b10 Robot/C 300 | . 120 120 60 Destroy 0b10 Robot/NC 65 | . 40 25 . Destroy Leader 50 | . 30 20 . Destroy Structure 20 | . 3 17 . Partial Spotted 30 | . . 30 . Lose Combat Pursuer 135 | . 30 60 45 Influence Decreases 555 | . 223 272 60 Time Decay 495 | . 223 252 20 Lost Part 60 | . . 20 40 Squads Dispatched . | . . . . Investigation . | . . . . Extermination . | . . . . Reinforcement . | . . . . Assault . | . . . . Garrison . | . . . . Intercept . | . . . . Searches Triggered . | . . . . Construction Impeded . | . . . . Haulers Reinforced . | . . . . Active Scanning Responses . | . . . . Cargo Convoy Interrupts . | . . . . Stealth | -11 -10 -10 -10 --------- Run | Yrd Mat Min Sub Distress Signals 3 | . 3 . . Communications Jammed . | . . . . Distress Signals . | . . . . Times Spotted 37 | . 14 9 14 Peak Tracking Total 6 | . 3 6 6 Tactical Retreats 5 | . 2 2 1 Traps | -11 -10 -10 -10 ------- Run | Yrd Mat Min Sub Traps Triggered 1 | . 1 . . Indirectly . | . . . . Trap Hack Attempts . | . . . . Triggered . | . . . . Disarmed . | . . . . Reprogrammed . | . . . . Reused . | . . . . Traps Extracted . | . . . . Installed . | . . . . Triggered . | . . . . Machines | -11 -10 -10 -10 ---------- Run | Yrd Mat Min Sub Machines Disabled 3 | . . 2 1 Max in Single Turn 1 | . . 1 1 Machines Repaired . | . . . . Machines Dismantled . | . . . . Machines Sabotaged . | . . . . Overloaded Fab Kills . | . . . . Hacking | -11 -10 -10 -10 --------- Run | Yrd Mat Min Sub Machines Accessed 1 | . . . 1 Terminals . | . . . . Fabricators . | . . . . Repair Stations . | . . . . Recycling Units . | . . . . Scanalyzers . | . . . . Garrison Access . | . . . . Total Hacks 1 | . . . 1 Successful 1 | . . . 1 Failed . | . . . . Catastrophic . | . . . . Database Lockouts . | . . . . Manual . | . . . . Terminals . | . . . . Fabricators . | . . . . Repair Stations . | . . . . Recycling Units . | . . . . Scanalyzers . | . . . . Garrison Access . | . . . . Terminal Hacks 1 | . . . 1 Proto ID Catalog 1 | . . . 1 Fabricator Hacks . | . . . . Repair Station Hacks . | . . . . Recycling Unit Hacks . | . . . . Scanalyzer . | . . . . Garrison Access Hacks . | . . . . Unauthorized Hacks . | . . . . Terminals . | . . . . Fabricators . | . . . . Repair Stations . | . . . . Recycling Units . | . . . . Scanalyzers . | . . . . Garrison Access . | . . . . Data Cores Recovered . | . . . . Used . | . . . . Hacking Detections . | . . . . Full Trace Events . | . . . . Feedback Events . | . . . . Feedback Blocked . | . . . . Robot Schematics Acquired . | . . . . Robots Built . | . . . . Authchips . | . . . . Time . | . . . . Total Robot Build Rating . | . . . . Part Schematics Acquired . | . . . . Parts Built . | . . . . Authchips . | . . . . Time . | . . . . Total Part Build Rating . | . . . . Part Studies Acquired . | . . . . Parts Repaired . | . . . . Time . | . . . . Parts Recycled . | . . . . Recycled Matter . | . . . . Retrieved Matter . | . . . . Retrieved Components . | . . . . Parts Scanalyzed . | . . . . Part Schematics Acquired . | . . . . Parts Damaged . | . . . . Bothacking | -11 -10 -10 -10 ------------ Run | Yrd Mat Min Sub Used RIF Installer . | . . . . Robots Hacked . | . . . . Non-combat . | . . . . Combat . | . . . . Robot Hacks Applied . | . . . . Relay Couplers Released . | . . . . Fabnet Peak Effective % . | . . . . Robots Rewired 1 | . . . 1 Allies Hacked . | . . . . Hacks Repelled . | . . . . Allies | -11 -10 -10 -10 -------- Run | Yrd Mat Min Sub Total Allies 1 | . . . 1 Largest Group 1 | . . . 1 Highest-Rated Group 19 | . . . 19 Highest-Rated Ally 19 | . . . 19 Total Orders . | . . . . Ally Attacks 7 | . . . 7 Total Damage 109 | . . . 109 Kills . | . . . . Allies Corrupted . | . . . . Allies Melted . | . . . . Intel | -11 -10 -10 -10 ------- Run | Yrd Mat Min Sub Active Infowar (turns) 1070 | . . . 1070 Sensors 1070 | . . . 1070 Robot Analysis Total . | . . . . Derelict Logs Recovered 2 | . . 1 1 Drone Launches . | . . . . Drone Recoveries . | . . . . Exploration | -11 -10 -10 -10 ------------- Run | Yrd Mat Min Sub Turns Passed 3213 | 34 897 667 1615 Spaces Moved 2281 | 52 910 679 640 Core 214 | 52 162 . . Treads 918 | . 128 150 640 Legs . | . . . . Wheels . | . . . . Hover 274 | . 274 . . Flight 875 | . 346 529 . Fastest Speed 34 | 50 34 34 160 Average Speed 114 | 50 73 80 211 Slowest Speed 400 | 50 160 160 400 Overloaded Moves . | . . . . Propulsion Burnouts . | . . . . Robots Hopped . | . . . . Potential Cave-ins . | . . . . Cave-ins Triggered . | . . . . Exploration Rate (%) 57 | 4 98 99 28 Regions Visited 3 Branch Regions 2 Pre-discovered Areas . | . . . . Known Exits Taken 3 | 1 1 1 . Unknown Exits Taken . | . . . . Scrap Searched 6 | . . 1 5 Spaces Dug . | . . . . Terrain Destroyed 19 | . 3 16 . Melee . | . . . . Projectile . | . . . . AOE 19 | . 3 16 . Terrain Rammed . | . . . . Walls Destroyed . | . . . . Machines Disabled . | . . . . Actions | -11 -10 -10 -10 --------- Run | Yrd Mat Min Sub Total 2665 | 58 1079 760 768 Wait 180 | . 91 45 44 Move 2278 | 51 909 678 640 Hop . | . . . . Pick Up 35 | 5 15 5 10 Fast Attach 7 | 2 4 . 1 Attach 21 | . 10 4 7 Detach 4 | . 2 1 1 Swap 8 | . 4 3 1 Drop 20 | . 12 4 4 Fire 104 | . 32 19 53 Melee . | . . . . Ram . | . . . . Kick . | . . . . Crush 1 | . . 1 . Escape Stasis . | . . . . Rewire 7 | . . . 7 Trap . | . . . . Miscellaneous . | . . . . Route ------- -11/Scrapyard -10/Materials (discovered 5 exits: *Mat x3 / *Min x2) -10/Mines (discovered 4 exits: *Mat x2 / *Exi / *Sub) -10/Subcaves (discovered 2 exits: *Mat x2) History --------- Turn | Location | Event 25 | -11/Scrapyard | Identified exit to Materials 25 | -11/Scrapyard | Discovered exit to Materials (range 13) 35 | -11/Scrapyard | Entered Materials 35 | -10/Materials | Evolved 1 slot: Propulsion x1 111 | -10/Materials | Identified exit to Mines 111 | -10/Materials | Discovered exit to Mines (range 9) 157 | -10/Materials | Identified exit to Materials 157 | -10/Materials | Discovered exit to Materials (range 16) 247 | -10/Materials | Discovered exit to Mines (range 12) 301 | -10/Materials | Build established: Hacker-Mutant 656 | -10/Materials | Discovered exit to Materials (range 13) 875 | -10/Materials | Discovered exit to Materials (range 15) 932 | -10/Materials | Entered Mines 954 | -10/Mines | Discovered exit to Materials (range 8) 990 | -10/Mines | A weapon hastily lodged in a ceiling crevice suddenly fell to the ground 993 | -10/Mines | Learned 4 Materials zone layouts 1054 | -10/Mines | Discovered exit to Materials (range 6) 1176 | -10/Mines | Identified exit to Subcaves 1176 | -10/Mines | Discovered exit to Subcaves (range 15) 1298 | -10/Mines | Deemed a non-threat by the Exiles lab entrance 1298 | -10/Mines | Identified exit to Exiles 1298 | -10/Mines | Discovered exit to Exiles (range 5) 1323 | -10/Mines | Found a damaged Exp. Sensor Array with a note attached 1330 | -10/Mines | Found Prototype Device 1422 | -10/Mines | Core integrity fell below 50% 1599 | -10/Mines | Entered Subcaves 2075 | -10/Subcaves | Identified exit to Materials 2116 | -10/Subcaves | Visited 4L-MR0's lab 2141 | -10/Subcaves | Found Meta Core 2143 | -10/Subcaves | Attached Meta Core, gained temporary slots: Propulsion, Utility, Weapon 2144 | -10/Subcaves | Identified Exp. Sensor Array 2446 | -10/Subcaves | Build established: Hacker-Skirmisher 2969 | -10/Subcaves | A Subdweller sparked back to life 2969 | -10/Subcaves | A Subdweller sparked back to life 2969 | -10/Subcaves | A Subdweller sparked back to life 3014 | -10/Subcaves | Core integrity fell below 20% 3030 | -10/Subcaves | Found Power Bank 3095 | -10/Subcaves | Discovered exit to Materials (range 12) 3165 | -10/Subcaves | Shifting Twisted Machinery released Sub. Shrapnel Launcher 3168 | -10/Subcaves | Shifting Twisted Machinery released Sub. Monowheel 3214 | -10/Subcaves | Destroyed self with Light Ion Engine chain reaction Last Messages --------------- 03092_ Lgt. Treads destroyed. 03095_ EXIT=FOUND: MATERIALS 03095_ Plasma Flamer destroyed. 03113_ Y-45 Defender destroyed. 03115_ Acquired 8 matter. 03123_ Acquired Lgt. Treads. 03125_ Acquired 10 matter. 03129_ Acquired Imp. Ion Engine. Sub. Shrapnel Launcher falls loose from the Twisted Machinery. Sub. Monowheel falls loose from the Twisted Machinery. 03202_ Barrage Gun destroyed. 03202_ Temporary Weapon slot lost. 03208_ Subatomizers dissect the Sub. Power Source. 03213_ Lgt. Treads destroyed. 03214_ Chain reaction triggered in Lgt. Ion Engine. 03214_ S-10 Pest destroyed. Map ----- +----------------------------------------------------+ | ??????## ## ##????????????????????????????? | | ??????# #????????????????????????????? | | ??????# !![ #### ##???????????????????????????? | | ??????## % ##??# ##??????????????????????????? | | ?????## ! #?? #??????????????????????????? | | ?????# #?# ????????????????????????????? | | ?????# ## ##????????????????????????????? | | ?????## # #??????????????????????????????? | | ??????### #???????????????????????????????? | | ????????#### #???????????????????????????????? | | ???????????# < #???????????????????????????????? | | ???????????# #???????????????????????????????? | | ???????????## ##???????????????????????????????? | | ????????????# #????????????????????????????????? | | ???????????## #######??????????????????????????? | | ??????????## %# % #"######?????????????????????? | | ??????????# ]"" " "###???????????????????? | | ??????????# "" """"" ####????????????????? | | ??????????## ##" = "#????????????????? | | ???????????########### ## % ##???????????????? | | ?????????????????????###### #???????????????? | | ??????????????????????????# % #???????????????? | | ??????????????????????????# #???????????????? | | ?????????????????????????##s ## ##???????????????? | | ????????????????????????## ####????????????????? | | ????????????????????????#@ #?????????????????? | | ???????????????????????= [ #?????????????? | | ????????????????????? s #?????????????? | | ???????????????????"t % & ??????????? | | ?????????????????#" ### % ?????????? | | ?????????????????#" s% ??# % ?????????? | | ?????????????????#""" "?? * %% ?????????? | | ?????????????????######??? ?????????? | | ?????????????????????????? % ??????????? | | ??????????????????????????# ## #??????????? | | ???????????????????????????####?# ???????????? | | ?????????????????????????????????# ????????????? | | ??????????????????????????????????#??????????????? | | ?????????????????????????????????????????????????? | | ?????????????????????????????????????????????????? | | ?????????????????????????????????????????????????? | | ?????????????????????????????????????????????????? | | ?????????????????????????????????????????????????? | | ?????????????????????????????????????????????????? | | ?????????????????????????????????????????????????? | | ?????????????????????????????????????????????????? | | ?????????????????????????????????????????????????? | | ?????????????????????????????????????????????????? | | ?????????????????????????????????????????????????? | | ?????????????????????????????????????????????????? | +----------------------------------------------------+ Best States ------------- Heat Dissipation 25 Energy Generation 17 Energy Capacity 250 Matter Stores 300 Matter Capacity 300 Sight Range 16 Robot Scan Range 20 Terrain Scan Density 10 Additional Mass Support 6 Resistance: KI 35 Resistance: TH 35 Resistance: EX 35 Resistance: EM 35 Resistance: I 35 Resistance: S 35 Resistance: P 35 Evasion (%) 63 Recoil Reduction 3 Offensive Hacking 20 Item Schematics ----------------- None Robot Schematics ------------------ None Fabricated ------------ Nothing Repaired ---------- Nothing Studied --------- None Alien Tech Used ----------------- None Achievements -------------- None Challenges ------------ None Game ------ Seed LauncherSlugRedirector Manual? 0 Play Time 00:21:02 Cumulative 154.5 hours Start 2025.12.02 @ 13:42:58 End 2025.12.02 @ 14:02:38 Sessions 1 Manual Loads 0 Difficulty Explorer Special Mode None Game No. 194 Rogue 0 Adventurer 0 Explorer 194 Win Type - Total 0 Types 0/0/0/0/0/0/0/0/0/0 Lore% 70 Gallery% 66 Achievement% 52 Wizard Run 0 Options --------- Layout 1 ASCII 0 Keyboard 0 Movement Mouse Keybinds 0 Fullscreen 1 Font 24/Smallcaps Map View 50x35 Zoom Use 0% Tactical HUD 1 Map Filters NONE Filters NONE Steam 1 RUN: 87951ae9-b2d8-4257-956c-626632e7522e